fUSD/lending_fUSD_20250505
["ID","MTS","AMOUNT","RATE_DAILY","PERIOD"]
[359981835,1746461580261,-101.09410517,0.00019856,2]
[359981836,1746461580270,-151.0,0.00019857,2]
[359981837,1746461580280,-151.0,0.00019857,2]
[359981838,1746461580290,-154.193072,0.00019857,2]
[359981839,1746461580299,-151.0,0.00019858,2]
[359981840,1746461580309,-151.0,0.00019858,2]
[359981841,1746461580319,-150.0,0.00019858,2]
[359981842,1746461580329,-500.0,0.00019858,2]
[359981843,1746461580340,-150.0,0.00019858,2]
[359981844,1746461580350,-155.9501235,0.00019858,2]
[359981845,1746461580360,-500.0,0.00019858,2]
[359981846,1746461580370,-171.85735978,0.00019858,2]
[359981847,1746461580380,-500.0,0.00019858,2]
[359981848,1746461580389,-150.0,0.00019858,2]
[359981849,1746461580398,-45.71533955,0.00019858,2]
[359981850,1746461580409,-104.28466045,0.00019858,2]
[359981851,1746461580418,-150.0,0.00019858,2]
[359981852,1746461580427,-195.71533955,0.00019858,2]
[359981853,1746461580438,-7.70766474,0.00019858,2]
[359981854,1746461580447,-150.0,0.00019858,2]
[359981855,1746461580456,-292.29233526,0.00019868,2]
[359981856,1746461580467,-157.70766474,0.00019868,2]
[359981857,1746461580477,-292.29233526,0.00019868,2]
[359981858,1746461580488,-157.70766474,0.00019868,2]
[359981859,1746461580497,-1341.16,0.00019868,2]
[359981860,1746461580506,-450.0,0.00019868,2]
[359981861,1746461580516,-138.29233526,0.00019868,2]
[359981862,1746461580527,-311.70766474,0.00019868,2]
[359981863,1746461580536,-814.33,0.00019868,2]
[359981864,1746461580547,-450.0,0.00019868,2]
[359981865,1746461580555,-463.64233526,0.00019868,2]
[359981866,1746461580595,-181.15766474,0.00019868,2]
[359981867,1746461580604,-268.84233526,0.00019868,2]
[359981868,1746461580618,-527.36,0.00019868,2]
[359981869,1746461580629,-1843.01,0.00019868,2]
[359981870,1746461580641,-450.0,0.00019868,2]
[359981871,1746461580652,-450.0,0.00019868,2]
[359981872,1746461580674,-7016.60766474,0.00019868,2]
[359981873,1746461580683,-450.0,0.00019868,2]
[359981874,1746461580695,-450.0,0.00019868,2]
[359981875,1746461580705,-450.0,0.00019868,2]
[359981876,1746461580714,-450.0,0.00019868,2]
[359981877,1746461580722,-445.49051921,0.00019868,2]
[359981878,1746461580731,-450.0,0.00019868,2]
[359981879,1746461580742,-450.0,0.00019868,2]
[359981880,1746461580751,-450.0,0.00019868,2]
[359981881,1746461580760,-450.0,0.00019868,2]
[359981882,1746461580771,-450.0,0.00019868,2]
[359981883,1746461580781,-450.0,0.00019868,2]
[359981884,1746461580792,-450.0,0.00019868,2]
[359981885,1746461580802,-450.0,0.00019868,2]
[359981886,1746461580812,-450.0,0.00019868,2]
[359981887,1746461580822,-409.66,0.00019869,2]
[359981888,1746461580833,-450.0,0.00019869,2]
[359981889,1746461580842,-450.0,0.00019869,2]
[359981890,1746461580852,-485.16,0.00019869,2]
[359981891,1746461580862,-450.0,0.00019869,2]
[359981892,1746461580872,-1011.67,0.00019869,2]
[359981893,1746461580882,-532.36,0.00019869,2]
[359981894,1746461580892,-564.67,0.00019869,2]
[359981895,1746461580902,-450.0,0.00019869,2]
[359981896,1746461580911,-450.0,0.00019869,2]
[359981897,1746461580920,-450.0,0.00019869,2]
[359981898,1746461580930,-450.0,0.00019869,2]
[359981899,1746461580940,-450.0,0.00019869,2]
[359981900,1746461580949,-450.0,0.00019869,2]
[359981901,1746461580960,-3036.63524708,0.0001987,2]
[359981902,1746461580969,-151.0,0.0001987,2]
[359981903,1746461580979,-151.0,0.00019871,2]
[359981904,1746461580987,-500.0,0.00019873,2]
[359981905,1746461580997,-500.0,0.00019873,2]
[359981906,1746461581006,-523.45807803,0.00019873,2]
[359981907,1746461581015,-500.0,0.00019873,2]
[359981908,1746461581025,-500.0,0.00019873,2]
[359981909,1746461581034,-500.0,0.00019873,2]
[359981910,1746461581044,-500.0,0.00019873,2]
[359981911,1746461581054,-12500.0,0.00019874,2]
[359981912,1746461581063,-1880.29002652,0.00019876,2]
[359981913,1746461581073,-535.08,0.00019882,2]
[359981914,1746461581083,-450.0,0.00019882,2]
[359981915,1746461581092,-450.0,0.00019882,2]
[359981916,1746461581102,-450.0,0.00019882,2]
[359981917,1746461581112,-1129.90846442,0.00019882,2]
[359981918,1746461581125,-249.26153558,0.00019882,2]
[359981919,1746461581134,-200.73846442,0.00019882,2]
[359981920,1746461581145,-249.26153558,0.00019882,2]
[359981921,1746461581154,-200.73846442,0.00019882,2]
[359981922,1746461581169,-338.35153558,0.00019882,2]
[359981923,1746461581179,-111.64846442,0.00019882,2]
[359981924,1746461581191,-312.43153558,0.00019882,2]
[359981925,1746461581200,-260.61955255,0.00019882,2]
[359981926,1746461581212,-450.0,0.00019882,2]
[359981927,1746461581224,-298.83044745,0.00019882,2]
[359981928,1746461581234,-151.16955255,0.00019882,2]
[359981929,1746461581245,-323.83044745,0.00019882,2]
[359981930,1746461581255,-450.0,0.00019882,2]
[359981931,1746461581264,-450.0,0.00019882,2]
[359981932,1746461581273,-450.0,0.00019882,2]
[359981933,1746461581282,-2087.16,0.00019882,2]
[359981934,1746461581292,-2039.68,0.00019882,2]
[359981935,1746461581301,-527.36,0.00019882,2]
[359981936,1746461581311,-1843.01,0.00019882,2]
[359981937,1746461581321,-28863.53955255,0.00019882,2]
[359981938,1746461581333,-15759.45044745,0.00019882,2]
[359981939,1746461581342,-450.0,0.00019882,2]
[359981940,1746461581352,-1513.4,0.00019882,2]
[359981941,1746461581364,-6284.94,0.00019882,2]
[359981942,1746461581373,-450.0,0.00019882,2]
[359981943,1746461581383,-892.57,0.00019882,2]
[359981944,1746461581392,-2409.61,0.00019882,2]
[359981945,1746461581401,-3182.81,0.00019882,2]
[359981946,1746461581410,-915.0,0.00019882,2]
[359981947,1746461581419,-582.0,0.00019882,2]
[359981948,1746461581532,-551.0,0.00019882,2]
[359981949,1746461581542,-1452.0,0.00019882,2]
[359981950,1746461581551,-1242.0,0.00019882,2]
[359981951,1746461581560,-1349.79955255,0.00019882,2]
[359981952,1746461581576,-1513.4,0.00019882,2]
[359981953,1746461581592,-450.0,0.00019844,2]
[359981954,1746461581602,-50.0,0.00019882,2]
[359981955,1746461581617,-450.0,0.00019882,2]
[359981956,1746461581646,-500.0,0.00019882,2]
[359981957,1746461581657,-450.0,0.00019882,2]
[359981958,1746461581668,-504.74,0.00019882,2]
[359981959,1746461581679,-450.0,0.00019882,2]
[359981960,1746461581705,-1493.06044745,0.00019882,2]
[359981961,1746461581715,-4013.0,0.00019882,2]
[359981962,1746461581724,-778.87955255,0.00019882,2]
[359981963,1746461581740,-99.12044745,0.00019882,2]
[359981964,1746461581751,-200.0,0.00019882,2]
[359981965,1746461581760,-150.87955255,0.00019882,2]
[359981966,1746461581772,-892.57,0.00019882,2]
[359981967,1746461581789,-450.0,0.00019853,2]
[359981968,1746461581798,-32.59,0.00019882,2]
[359981969,1746461581810,-482.59,0.00019882,2]
[359981970,1746461581821,-2409.61,0.00019882,2]
[359981971,1746461581832,-450.0,0.00019882,2]
[359981972,1746461581844,-450.0,0.00019882,2]
[359981973,1746461581859,-3182.81,0.00019882,2]
[359981974,1746461581871,-500.0,0.00019882,2]
[359981975,1746461581883,-198.51188841,0.00019882,2]
[359981976,1746461581901,-151.03,0.00019854,2]
[359981977,1746461581911,-348.97,0.00019882,2]
[359981978,1746461581924,-500.0,0.00019882,2]
[359981979,1746461581935,-477.11542048,0.00019882,2]
[359981980,1746461581947,-500.0,0.00019882,2]
[359981981,1746461581962,-450.0,0.00019882,2]
[359981982,1746461581973,-0.66756878,0.00019882,2]
[359981983,1746461646945,-391.9495638,0.0001973,2]
[359981984,1746461646972,-12130.7314,0.00019744,2]
[359981985,1746461646999,-2186.2735,0.00019754,2]
[359981986,1746461647031,-2089.51835513,0.00019755,2]
[359981987,1746461647060,-2089.51835513,0.00019771,2]
[359981988,1746461647088,-2089.51835513,0.00019787,2]
[359981989,1746461647117,-3069.9898711,0.00019797,2]
[359981990,1746461647147,-2089.51835513,0.00019803,2]
[359981991,1746461647175,-3069.9898711,0.00019808,2]
[359981992,1746461647203,-2089.51835513,0.00019819,2]
[359981993,1746461647230,-3069.9898711,0.0001982,2]
[359981994,1746461647259,-3069.9898711,0.00019831,2]
[359981995,1746461647288,-2089.51835513,0.00019836,2]
[359981996,1746461647317,-3069.9898711,0.00019843,2]
[359981997,1746461647346,-450.0,0.00019844,2]
[359981998,1746461647373,-559.67,0.00019844,2]
[359981999,1746461647402,-450.0,0.00019844,2]
[359982000,1746461647432,-450.0,0.00019844,2]
[359982001,1746461647460,-450.0,0.00019844,2]
[359982002,1746461647487,-450.0,0.00019844,2]
[359982003,1746461647516,-450.0,0.00019844,2]
[359982004,1746461647543,-450.0,0.00019844,2]
[359982005,1746461647571,-450.0,0.00019844,2]
[359982006,1746461647599,-450.0,0.00019844,2]
[359982007,1746461647626,-450.0,0.00019844,2]
[359982008,1746461647653,-450.0,0.00019844,2]
[359982009,1746461647680,-7916.87,0.00019844,2]
[359982010,1746461647709,-450.0,0.00019844,2]
[359982011,1746461647741,-464.94,0.00019844,2]
[359982012,1746461647770,-450.0,0.00019844,2]
[359982013,1746461647798,-450.0,0.00019844,2]
[359982014,1746461647825,-450.0,0.00019844,2]
[359982015,1746461647854,-450.0,0.00019844,2]
[359982016,1746461647881,-450.0,0.00019844,2]
[359982017,1746461647908,-450.0,0.00019844,2]
[359982018,1746461647938,-1034.38,0.00019844,2]
[359982019,1746461647966,-568.38,0.00019844,2]
[359982020,1746461647994,-542.7,0.00019844,2]
[359982021,1746461648022,-450.0,0.00019844,2]
[359982022,1746461648051,-450.0,0.00019844,2]
[359982023,1746461648079,-450.0,0.00019844,2]
[359982024,1746461648108,-450.0,0.00019844,2]
[359982025,1746461648136,-630.9,0.00019844,2]
[359982026,1746461648163,-450.0,0.00019844,2]
[359982027,1746461648190,-450.0,0.00019844,2]
[359982028,1746461648220,-450.0,0.00019844,2]
[359982029,1746461648246,-450.0,0.00019844,2]
[359982030,1746461648273,-450.0,0.00019844,2]
[359982031,1746461648301,-450.0,0.00019844,2]
[359982032,1746461648327,-450.0,0.00019844,2]
[359982033,1746461648354,-450.0,0.00019844,2]
[359982034,1746461648382,-450.0,0.00019844,2]
[359982035,1746461648408,-450.0,0.00019844,2]
[359982036,1746461648434,-450.0,0.00019844,2]
[359982037,1746461648461,-450.0,0.00019844,2]
[359982038,1746461648488,-515.56,0.00019844,2]
[359982039,1746461648514,-462.01,0.00019844,2]
[359982040,1746461648540,-536.82,0.00019844,2]
[359982041,1746461648567,-450.0,0.00019844,2]
[359982042,1746461648594,-397.0554967,0.00019844,2]
[359982043,1746461648621,-450.0,0.00019844,2]
[359982044,1746461648648,-2089.51835513,0.00019852,2]
[359982045,1746461648675,-591.76,0.00019852,2]
[359982046,1746461648704,-450.0,0.00019852,2]
[359982047,1746461648735,-450.0,0.00019852,2]
[359982048,1746461648763,-547.08,0.00019852,2]
[359982049,1746461648792,-450.0,0.00019852,2]
[359982050,1746461648821,-450.0,0.00019852,2]
[359982051,1746461648851,-450.0,0.00019852,2]
[359982052,1746461648881,-450.0,0.00019852,2]
[359982053,1746461648908,-450.0,0.00019852,2]
[359982054,1746461648935,-555.74,0.00019852,2]
[359982055,1746461648964,-464.94,0.00019852,2]
[359982056,1746461648993,-1034.38,0.00019852,2]
[359982057,1746461649021,-450.0,0.00019852,2]
[359982058,1746461649049,-450.0,0.00019852,2]
[359982059,1746461649077,-450.0,0.00019852,2]
[359982060,1746461649106,-450.0,0.00019852,2]
[359982061,1746461649132,-630.9,0.00019852,2]
[359982062,1746461649160,-1625.64,0.00019852,2]
[359982063,1746461649187,-450.0,0.00019852,2]
[359982064,1746461649215,-450.0,0.00019852,2]
[359982065,1746461649241,-450.0,0.00019852,2]
[359982066,1746461649268,-450.0,0.00019853,2]
[359982067,1746461649294,-7916.87,0.00019853,2]
[359982068,1746461649323,-450.0,0.00019853,2]
[359982069,1746461649352,-568.38,0.00019853,2]
[359982070,1746461649378,-450.0,0.00019853,2]
[359982071,1746461649405,-450.0,0.00019853,2]
[359982072,1746461649433,-450.0,0.00019853,2]
[359982073,1746461649460,-450.0,0.00019853,2]
[359982074,1746461649486,-450.0,0.00019853,2]
[359982075,1746461649512,-450.0,0.00019853,2]
[359982076,1746461649540,-194.92,0.00019854,2]
[359982077,1746461649566,-450.0,0.00019854,2]
[359982078,1746461649597,-450.0,0.00019854,2]
[359982079,1746461649624,-450.0,0.00019854,2]
[359982080,1746461649649,-450.0,0.00019854,2]
[359982081,1746461649676,-450.0,0.00019854,2]
[359982082,1746461649701,-7916.87,0.00019854,2]
[359982083,1746461649733,-464.94,0.00019854,2]
[359982084,1746461649761,-464.94,0.00019854,2]
[359982085,1746461649788,-450.0,0.00019854,2]
[359982086,1746461649818,-500.0,0.00019854,2]
[359982087,1746461649849,-368.42760915,0.00019854,2]
[359982088,1746461649878,-1034.38,0.00019854,2]
[359982089,1746461649907,-1034.38,0.00019854,2]
[359982090,1746461650080,-568.38,0.00019854,2]
[359982091,1746461650110,-450.0,0.00019854,2]
[359982092,1746461650139,-450.0,0.00019854,2]
[359982093,1746461650168,-450.0,0.00019854,2]
[359982094,1746461650197,-450.0,0.00019854,2]
[359982095,1746461650226,-630.9,0.00019854,2]
[359982096,1746461650253,-630.9,0.00019854,2]
[359982097,1746461650281,-450.0,0.00019854,2]
[359982098,1746461650308,-450.0,0.00019854,2]
[359982099,1746461650337,-1625.64,0.00019854,2]
[359982100,1746461650367,-450.0,0.00019854,2]
[359982101,1746461650397,-450.0,0.00019854,2]
[359982102,1746461650426,-450.0,0.00019854,2]
[359982103,1746461650456,-423.79,0.00019854,2]
[359982104,1746461650488,-450.0,0.00019854,2]
[359982105,1746461650518,-450.0,0.00019854,2]
[359982106,1746461650548,-450.0,0.00019854,2]
[359982107,1746461650578,-3069.9898711,0.00019854,2]
[359982108,1746461650608,-450.0,0.00019855,2]
[359982109,1746461650637,-7916.87,0.00019855,2]
[359982110,1746461650664,-7916.87,0.00019855,2]
[359982111,1746461650692,-464.94,0.00019855,2]
[359982112,1746461650721,-500.0,0.00019855,2]
[359982113,1746461650748,-450.0,0.00019855,2]
[359982114,1746461650775,-150.0,0.00019855,2]
[359982115,1746461650804,-150.0,0.00019855,2]
[359982116,1746461650832,-1034.38,0.00019855,2]
[359982117,1746461650860,-150.0,0.00019855,2]
[359982118,1746461650890,-568.38,0.00019855,2]
[359982119,1746461650918,-450.0,0.00019855,2]
[359982120,1746461650946,-477.67,0.00019855,2]
[359982121,1746461650974,-450.0,0.00019855,2]
[359982122,1746461651002,-630.9,0.00019855,2]
[359982123,1746461651031,-450.0,0.00019855,2]
[359982124,1746461651059,-450.0,0.00019855,2]
[359982125,1746461651086,-450.0,0.00019855,2]
[359982126,1746461651114,-450.0,0.00019855,2]
[359982127,1746461651143,-450.0,0.00019855,2]
[359982128,1746461651172,-450.0,0.00019855,2]
[359982129,1746461651200,-151.0,0.00019856,2]
[359982130,1746461651226,-450.0,0.00019856,2]
[359982131,1746461651254,-568.38,0.00019856,2]
[359982132,1746461651281,-450.0,0.00019856,2]
[359982133,1746461651308,-450.0,0.00019856,2]
[359982134,1746461651334,-450.0,0.00019856,2]
[359982135,1746461651362,-3069.9898711,0.00019866,2]
[359982136,1746461651390,-2089.51835513,0.00019868,2]
[359982137,1746461651416,-450.0,0.00019868,2]
[359982138,1746461651444,-450.0,0.00019868,2]
[359982139,1746461651470,-434.64958771,0.00019868,2]
[359982140,1746461651497,-568.38,0.00019868,2]
[359982141,1746461651523,-450.0,0.00019868,2]
[359982142,1746461651549,-450.0,0.00019868,2]
[359982143,1746461651577,-1625.64,0.00019868,2]
[359982144,1746461651605,-450.0,0.00019868,2]
[359982145,1746461651633,-450.0,0.00019868,2]
[359982146,1746461651658,-164.18743977,0.00019873,2]
[359982147,1746461651685,-3069.9898711,0.00019877,2]
[359982148,1746461651714,-7916.87,0.00019882,2]
[359982149,1746461651752,-450.0,0.00019882,2]
[359982150,1746461651784,-548.73087827,0.00019882,2]
[359982151,1746461651812,-150.0,0.00019882,2]
[359982152,1746461651839,-150.0,0.00019882,2]
[359982153,1746461651868,-1473.68556978,0.00019882,2]
[359982154,1746461651896,-2089.51835513,0.00019884,2]
[359982155,1746461651923,-1141.0,0.00019884,2]
[359982156,1746461651951,-5931.0,0.00019884,2]
[359982157,1746461651979,-37034.58,0.00019885,2]
[359982158,1746461652009,-500.0,0.00019885,2]
[359982159,1746461652038,-450.0,0.00019885,2]
[359982160,1746461652066,-482.59,0.00019885,2]
[359982161,1746461652094,-450.0,0.00019885,2]
[359982162,1746461652123,-464.94,0.00019885,2]
[359982163,1746461652152,-1034.38,0.00019885,2]
[359982164,1746461652179,-450.0,0.00019885,2]
[359982165,1746461652206,-630.9,0.00019885,2]
[359982166,1746461652236,-450.0,0.00019885,2]
[359982167,1746461652264,-450.0,0.00019885,2]
[359982168,1746461652291,-150.0,0.00019885,2]
[359982169,1746461652319,-550.0,0.00019885,2]
[359982170,1746461652345,-228.63073638,0.00019885,2]
[359982171,1746461652371,-150.0,0.00019885,2]
[359982172,1746461652398,-150.0,0.00019885,2]
[359982173,1746461652426,-798.81,0.00019886,2]
[359982174,1746461652453,-450.0,0.00019886,2]
[359982175,1746461652480,-450.0,0.00019886,2]
[359982176,1746461652508,-504.9,0.00019886,2]
[359982177,1746461652536,-450.0,0.00019886,2]
[359982178,1746461652563,-450.0,0.00019886,2]
[359982179,1746461652592,-507.81,0.00019886,2]
[359982180,1746461652619,-450.0,0.00019887,2]
[359982181,1746461652647,-4304.23493,0.00019887,2]
[359982182,1746461652673,-1011.67,0.00019887,2]
[359982183,1746461652698,-532.36,0.00019887,2]
[359982184,1746461652728,-226.54749,0.00019887,2]
[359982185,1746461652755,-564.67,0.00019887,2]
[359982186,1746461652784,-295.61006894,0.00019887,2]
[359982187,1746461652971,-317.62012906,0.00019887,2]
[359982188,1746461652981,-74.32943474,0.00019887,2]
[359982189,1746461653002,-12130.7314,0.00019887,2]
[359982190,1746461653017,-2186.2735,0.00019887,2]
[359982191,1746461653029,-2089.51835513,0.00019887,2]
[359982192,1746461653047,-2089.51835513,0.00019887,2]
[359982193,1746461653062,-2089.51835513,0.00019887,2]
[359982194,1746461653073,-3069.45287887,0.00019887,2]
[359982195,1746461653082,-0.53699223,0.00019887,2]
[359982196,1746461653098,-449.46300777,0.00019887,2]
[359982197,1746461653108,-450.0,0.00019887,2]
[359982198,1746461653117,-1190.05534736,0.00019887,2]
[359982199,1746461653133,-435.58465264,0.00019887,2]
[359982200,1746461653142,-450.0,0.00019887,2]
[359982201,1746461653152,-535.08,0.00019888,2]
[359982202,1746461653162,-450.0,0.00019888,2]
[359982203,1746461653172,-1199.32521846,0.00019888,2]
[359982204,1746461653183,-141.83478154,0.00019888,2]
[359982205,1746461653192,-450.0,0.00019888,2]
[359982206,1746461653201,-450.0,0.00019888,2]
[359982207,1746461653211,-150.0,0.00019888,2]
[359982208,1746461653220,-814.33,0.00019888,2]
[359982209,1746461653230,-83.35357359,0.00019888,2]
[359982210,1746461653252,-366.64642641,0.00019888,2]
[359982211,1746461653262,-644.8,0.00019888,2]
[359982212,1746461653272,-297.37,0.00019888,2]
[359982213,1746461653281,-450.0,0.00019888,2]
[359982214,1746461653291,-450.0,0.00019888,2]
[359982215,1746461653300,-450.0,0.00019888,2]
[359982216,1746461653309,-229.79,0.00019888,2]
[359982217,1746461653318,-181.38344469,0.00019888,2]
[359982218,1746461653481,-268.61655531,0.00019888,2]
[359982219,1746461653491,-2087.16,0.00019888,2]
[359982220,1746461653501,-714.21331579,0.00019888,2]
[359982221,1746461653513,-1325.46668421,0.00019888,2]
[359982222,1746461653523,-450.0,0.00019888,2]
[359982223,1746461653540,-314.05167092,0.00019888,2]
[359982224,1746461653556,-213.30832908,0.00019888,2]
[359982225,1746461653566,-1843.01,0.00019888,2]
[359982226,1746461653576,-450.0,0.00019888,2]
[359982227,1746461653586,-529.14272712,0.00019888,2]
[359982228,1746461653598,-34.5288149,0.00019888,2]
[359982229,1746461653609,-450.0,0.00019888,2]
[359982230,1746461653621,-559.67,0.00019888,2]
[359982231,1746461653637,-450.0,0.00019888,2]
[359982232,1746461653650,-450.0,0.00019888,2]
[359982233,1746461653667,-450.0,0.00019888,2]
[359982234,1746461653684,-450.0,0.00019888,2]
[359982235,1746461653702,-450.0,0.00019888,2]
[359982236,1746461653715,-450.0,0.00019888,2]
[359982237,1746461653727,-450.0,0.00019888,2]
[359982238,1746461653738,-450.0,0.00019888,2]
[359982239,1746461653757,-450.0,0.00019888,2]
[359982240,1746461653769,-450.0,0.00019888,2]
[359982241,1746461653781,-7916.87,0.00019888,2]
[359982242,1746461653796,-450.0,0.00019888,2]
[359982243,1746461653815,-464.94,0.00019888,2]
[359982244,1746461653827,-450.0,0.00019888,2]
[359982245,1746461653848,-450.0,0.00019888,2]
[359982246,1746461653861,-450.0,0.00019888,2]
[359982247,1746461653877,-450.0,0.00019888,2]
[359982248,1746461653889,-450.0,0.00019888,2]
[359982249,1746461653904,-450.0,0.00019888,2]
[359982250,1746461653916,-1034.38,0.00019888,2]
[359982251,1746461653927,-568.38,0.00019888,2]
[359982252,1746461653939,-542.7,0.00019888,2]
[359982253,1746461653950,-450.0,0.00019888,2]
[359982254,1746461653961,-450.0,0.00019888,2]
[359982255,1746461653976,-450.0,0.00019888,2]
[359982256,1746461653991,-450.0,0.00019888,2]
[359982257,1746461654003,-630.9,0.00019888,2]
[359982258,1746461654017,-450.0,0.00019888,2]
[359982259,1746461654028,-450.0,0.00019888,2]
[359982260,1746461654040,-450.0,0.00019888,2]
[359982261,1746461654055,-450.0,0.00019888,2]
[359982262,1746461654066,-450.0,0.00019888,2]
[359982263,1746461654082,-450.0,0.00019888,2]
[359982264,1746461654094,-450.0,0.00019888,2]
[359982265,1746461654106,-450.0,0.00019888,2]
[359982266,1746461654117,-450.0,0.00019888,2]
[359982267,1746461654133,-450.0,0.00019888,2]
[359982268,1746461654144,-450.0,0.00019888,2]
[359982269,1746461654156,-450.0,0.00019888,2]
[359982270,1746461654171,-515.56,0.00019888,2]
[359982271,1746461654183,-462.01,0.00019888,2]
[359982272,1746461654195,-536.82,0.00019888,2]
[359982273,1746461654207,-450.0,0.00019888,2]
[359982274,1746461654218,-397.0554967,0.00019888,2]
[359982275,1746461654230,-450.0,0.00019888,2]
[359982276,1746461654242,-2089.51835513,0.00019888,2]
[359982277,1746461654253,-591.76,0.00019888,2]
[359982278,1746461654267,-450.0,0.00019888,2]
[359982279,1746461654289,-450.0,0.00019888,2]
[359982280,1746461654301,-547.08,0.00019888,2]
[359982281,1746461654314,-450.0,0.00019888,2]
[359982282,1746461654326,-450.0,0.00019888,2]
[359982283,1746461654337,-450.0,0.00019888,2]
[359982284,1746461654349,-450.0,0.00019888,2]
[359982285,1746461654365,-450.0,0.00019888,2]
[359982286,1746461654376,-555.74,0.00019888,2]
[359982287,1746461654388,-464.94,0.00019888,2]
[359982288,1746461654399,-1034.38,0.00019888,2]
[359982289,1746461654411,-450.0,0.00019888,2]
[359982290,1746461654422,-450.0,0.00019888,2]
[359982291,1746461654453,-450.0,0.00019888,2]
[359982292,1746461654515,-450.0,0.00019888,2]
[359982293,1746461654530,-630.9,0.00019888,2]
[359982294,1746461654543,-1625.64,0.00019888,2]
[359982295,1746461654554,-450.0,0.00019888,2]
[359982296,1746461654574,-450.0,0.00019888,2]
[359982297,1746461654586,-450.0,0.00019888,2]
[359982298,1746461654604,-450.0,0.00019888,2]
[359982299,1746461654616,-469.21733327,0.00019888,2]
[359982300,1746461654626,-450.0,0.00019888,2]
[359982301,1746461654636,-1513.4,0.00019888,2]
[359982302,1746461654647,-450.0,0.00019888,2]
[359982303,1746461654656,-5034.25266673,0.00019888,2]
[359982304,1746461654668,-450.0,0.00019888,2]
[359982305,1746461654684,-568.38,0.00019888,2]
[359982306,1746461654697,-232.30733327,0.00019888,2]
[359982307,1746461654706,-217.69266673,0.00019888,2]
[359982308,1746461654721,-232.30733327,0.00019888,2]
[359982309,1746461654730,-217.69266673,0.00019888,2]
[359982310,1746461654742,-450.0,0.00019888,2]
[359982311,1746461654753,-224.87733327,0.00019888,2]
[359982312,1746461654765,-225.12266673,0.00019888,2]
[359982313,1746461654776,-450.0,0.00019888,2]
[359982314,1746461654790,-450.0,0.00019888,2]
[359982315,1746461654806,-194.92,0.00019888,2]
[359982316,1746461654819,-450.0,0.00019888,2]
[359982317,1746461654831,-450.0,0.00019888,2]
[359982318,1746461654844,-189.56733327,0.00019888,2]
[359982319,1746461654854,-260.43266673,0.00019888,2]
[359982320,1746461654866,-189.56733327,0.00019888,2]
[359982321,1746461654876,-260.43266673,0.00019888,2]
[359982322,1746461654887,-450.0,0.00019888,2]
[359982323,1746461654899,-2472.37733327,0.00019888,2]
[359982324,1746461654909,-450.0,0.00019888,2]
[359982325,1746461654918,-450.0,0.00019888,2]
[359982326,1746461654928,-4544.49266673,0.00019888,2]
[359982327,1746461654939,-464.94,0.00019888,2]
[359982328,1746461654951,-464.94,0.00019888,2]
[359982329,1746461654963,-450.0,0.00019888,2]
[359982330,1746461654974,-500.0,0.00019888,2]
[359982331,1746461654986,-368.42760915,0.00019888,2]
[359982332,1746461654997,-1034.38,0.00019888,2]
[359982333,1746461655009,-89.68972412,0.00019888,2]
[359982334,1746461655019,-568.38,0.00019888,2]